fUSD/lending_fUSD_20251122
["ID","MTS","AMOUNT","RATE_DAILY","PERIOD"]
[394614565,1763771441661,-1763.41,0.00016782,2]
[394614566,1763771441671,-166.66,0.00016813,2]
[394614567,1763771441681,-418.481827,0.00016815,2]
[394614568,1763771441691,-418.481827,0.00016815,2]
[394614569,1763771441700,-418.481827,0.00016815,2]
[394614570,1763771441709,-418.481827,0.00016815,2]
[394614571,1763771441719,-151.0,0.00016815,2]
[394614572,1763771441729,-151.0,0.00016815,2]
[394614573,1763771441738,-151.0,0.00016815,2]
[394614574,1763771441748,-151.0,0.00016815,2]
[394614575,1763771441757,-151.0,0.00016815,2]
[394614576,1763771441767,-151.0,0.00016815,2]
[394614577,1763771441777,-151.0,0.00016815,2]
[394614578,1763771441787,-151.0,0.00016815,2]
[394614579,1763771441796,-151.0,0.00016815,2]
[394614580,1763771441806,-151.0,0.00016815,2]
[394614581,1763771441815,-151.0,0.00016815,2]
[394614582,1763771441825,-305.515636,0.00016815,2]
[394614583,1763771441835,-305.515636,0.00016815,2]
[394614584,1763771441844,-305.515636,0.00016815,2]
[394614585,1763771441854,-305.515636,0.00016815,2]
[394614586,1763771441864,-252.180815,0.00016815,2]
[394614587,1763771441873,-252.180815,0.00016815,2]
[394614588,1763771441883,-252.180815,0.00016815,2]
[394614589,1763771441894,-252.180815,0.00016815,2]
[394614590,1763771441904,-186.385531,0.00016815,2]
[394614591,1763771441913,-186.385531,0.00016815,2]
[394614592,1763771441923,-186.385531,0.00016815,2]
[394614593,1763771441932,-186.385531,0.00016815,2]
[394614594,1763771441941,-151.0,0.00016815,2]
[394614595,1763771441951,-151.0,0.00016815,2]
[394614596,1763771441960,-151.0,0.00016815,2]
[394614597,1763771441969,-151.0,0.00016815,2]
[394614598,1763771441979,-151.0,0.00016815,2]
[394614599,1763771441989,-152.664375,0.00016815,2]
[394614600,1763771441998,-279.626637,0.00016815,2]
[394614601,1763771442008,-152.664375,0.00016815,2]
[394614602,1763771442017,-152.664375,0.00016815,2]
[394614603,1763771442027,-152.664375,0.00016815,2]
[394614604,1763771442036,-3037.76434224,0.00016815,2]
[394614605,1763771442045,-300.0,0.00016819,2]
[394614606,1763771442055,-322.28849709,0.00016873,2]
[394614607,1763771442064,-500.46054612,0.00016873,2]
[394614608,1763771442073,-500.0,0.00016873,2]
[394614609,1763771442084,-500.0,0.00016873,2]
[394614610,1763771442093,-165.86732143,0.00016873,2]
[394614611,1763771442102,-157.00336,0.00016873,2]
[394614612,1763771442111,-151.57024,0.00016873,2]
[394614613,1763771442121,-653.240225,0.00016873,2]
[394614614,1763771442130,-151.57024,0.00016873,2]
[394614615,1763771442140,-1000.0,0.00016875,2]
[394614616,1763771442151,-152.935594,0.00016889,2]
[394614617,1763771442160,-241.413445,0.00016889,2]
[394614618,1763771442169,-151.125198,0.00016889,2]
[394614619,1763771442178,-151.0,0.00016889,2]
[394614620,1763771442187,-151.0,0.00016889,2]
[394614621,1763771442197,-461.276591,0.00016889,2]
[394614622,1763771442206,-461.276591,0.00016889,2]
[394614623,1763771442216,-461.276591,0.00016889,2]
[394614624,1763771442225,-461.276591,0.00016889,2]
[394614625,1763771442235,-151.0,0.00016889,2]
[394614626,1763771442244,-151.0,0.00016889,2]
[394614627,1763771442253,-151.0,0.00016889,2]
[394614628,1763771442263,-357.52725,0.00016889,2]
[394614629,1763771442271,-151.0,0.00016889,2]
[394614630,1763771442281,-151.0,0.00016889,2]
[394614631,1763771442295,-357.52725,0.00016889,2]
[394614632,1763771442304,-151.0,0.00016889,2]
[394614633,1763771442314,-151.0,0.00016889,2]
[394614634,1763771442323,-357.52725,0.00016889,2]
[394614635,1763771442335,-357.52725,0.00016889,2]
[394614636,1763771442344,-152.710429,0.00016889,2]
[394614637,1763771442354,-10535.2502,0.00016889,2]
[394614638,1763771442364,-151.0,0.00016896,2]
[394614639,1763771442374,-151.0,0.00016896,2]
[394614640,1763771442384,-151.0,0.00016896,2]
[394614641,1763771442395,-154.066957,0.00016896,2]
[394614642,1763771442405,-157.914121,0.00016896,2]
[394614643,1763771442415,-204.750891,0.00016896,2]
[394614644,1763771442425,-151.0,0.00016896,2]
[394614645,1763771442435,-151.0,0.00016896,2]
[394614646,1763771442444,-151.0,0.00016896,2]
[394614647,1763771442453,-151.0,0.00016896,2]
[394614648,1763771442463,-151.0,0.00016896,2]
[394614649,1763771442472,-151.0,0.00016896,2]
[394614650,1763771442482,-151.0,0.00016896,2]
[394614651,1763771442495,-153.627602,0.00016896,2]
[394614652,1763771442504,-151.0,0.00016896,2]
[394614653,1763771442514,-151.0,0.00016896,2]
[394614654,1763771442523,-151.0,0.00016896,2]
[394614655,1763771442533,-189.857513,0.00016896,2]
[394614656,1763771442542,-151.0,0.00016896,2]
[394614657,1763771442551,-151.0,0.00016896,2]
[394614658,1763771442560,-151.0,0.00016896,2]
[394614659,1763771442570,-151.0,0.00016896,2]
[394614660,1763771442579,-161.242732,0.00016896,2]
[394614661,1763771442588,-151.0,0.00016896,2]
[394614662,1763771442598,-151.0,0.00016896,2]
[394614663,1763771442608,-151.0,0.00016896,2]
[394614664,1763771442618,-461.276591,0.00016896,2]
[394614665,1763771442627,-461.276591,0.00016896,2]
[394614666,1763771442637,-461.276591,0.00016896,2]
[394614667,1763771442646,-461.276591,0.00016896,2]
[394614668,1763771442656,-151.0,0.00016896,2]
[394614669,1763771442666,-357.52725,0.00016896,2]
[394614670,1763771442675,-151.0,0.00016896,2]
[394614671,1763771442685,-357.52725,0.00016896,2]
[394614672,1763771442694,-151.0,0.00016896,2]
[394614673,1763771442704,-151.0,0.00016896,2]
[394614674,1763771442713,-357.52725,0.00016896,2]
[394614675,1763771442723,-357.52725,0.00016896,2]
[394614676,1763771442732,-418.481827,0.00016896,2]
[394614677,1763771442743,-418.481827,0.00016896,2]
[394614678,1763771442753,-418.481827,0.00016896,2]
[394614679,1763771442763,-418.481827,0.00016896,2]
[394614680,1763771442773,-151.0,0.00016896,2]
[394614681,1763771442782,-151.0,0.00016896,2]
[394614682,1763771442792,-151.0,0.00016896,2]
[394614683,1763771442801,-151.0,0.00016896,2]
[394614684,1763771442811,-282.143803,0.00016896,2]
[394614685,1763771442820,-156.566993,0.00016896,2]
[394614686,1763771442830,-151.0,0.00016896,2]
[394614687,1763771442839,-151.0,0.00016896,2]
[394614688,1763771442849,-151.0,0.00016896,2]
[394614689,1763771442859,-151.0,0.00016896,2]
[394614690,1763771442868,-305.515636,0.00016896,2]
[394614691,1763771442878,-305.515636,0.00016896,2]
[394614692,1763771442887,-305.515636,0.00016896,2]
[394614693,1763771442897,-305.515636,0.00016896,2]
[394614694,1763771442907,-252.180815,0.00016896,2]
[394614695,1763771442916,-252.180815,0.00016896,2]
[394614696,1763771442926,-252.180815,0.00016896,2]
[394614697,1763771442935,-252.180815,0.00016896,2]
[394614698,1763771442945,-186.385531,0.00016896,2]
[394614699,1763771442954,-186.385531,0.00016896,2]
[394614700,1763771442964,-186.385531,0.00016896,2]
[394614701,1763771442974,-186.385531,0.00016896,2]
[394614702,1763771442983,-151.0,0.00016896,2]
[394614703,1763771442992,-151.0,0.00016896,2]
[394614704,1763771443003,-157.218919,0.00016896,2]
[394614705,1763771443013,-201.455442,0.00016896,2]
[394614706,1763771443022,-151.0,0.00016896,2]
[394614707,1763771443032,-152.664375,0.00016896,2]
[394614708,1763771443041,-152.664375,0.00016896,2]
[394614709,1763771443050,-152.664375,0.00016896,2]
[394614710,1763771443059,-152.664375,0.00016896,2]
[394614711,1763771443069,-151.57024,0.00016896,2]
[394614712,1763771443078,-653.240225,0.00016896,2]
[394614713,1763771443087,-151.57024,0.00016896,2]
[394614714,1763771443097,-620.0,0.00016896,2]
[394614715,1763771443107,-1362.33758212,0.00016896,2]
[394614716,1763771443116,-721.12765535,0.00016896,2]
[394614717,1763771443126,-574.12855637,0.00016896,2]
[394614718,1763771443135,-500.0,0.00016896,2]
[394614719,1763771443144,-500.0,0.00016896,2]
[394614720,1763771443153,-500.0,0.00016896,2]
[394614721,1763771443163,-151.0,0.00016896,2]
[394614722,1763771443173,-500.0,0.00016896,2]
[394614723,1763771443182,-500.0,0.00016896,2]
[394614724,1763771443192,-277.35679052,0.00016896,2]
[394614725,1763771443201,-250.0,0.00016896,2]
[394614726,1763771443211,-500.0,0.00016896,2]
[394614727,1763771443220,-250.0,0.00016896,2]
[394614728,1763771443230,-500.0,0.00016896,2]
[394614729,1763771443240,-250.0,0.00016896,2]
[394614730,1763771443253,-500.0,0.00016896,2]
[394614731,1763771443264,-250.0,0.00016896,2]
[394614732,1763771443276,-500.0,0.00016896,2]
[394614733,1763771443295,-250.0,0.00016896,2]
[394614734,1763771443305,-500.0,0.00016896,2]
[394614735,1763771443316,-250.0,0.00016896,2]
[394614736,1763771443327,-500.0,0.00016896,2]
[394614737,1763771443337,-250.0,0.00016896,2]
[394614738,1763771443352,-500.0,0.00016896,2]
[394614739,1763771443366,-500.0,0.00016896,2]
[394614740,1763771443379,-250.0,0.00016896,2]
[394614741,1763771443389,-500.0,0.00016896,2]
[394614742,1763771443398,-274.50469628,0.00016896,2]
[394614743,1763771443407,-500.0,0.00016896,2]
[394614744,1763771443425,-500.0,0.00016896,2]
[394614745,1763771443435,-250.0,0.00016896,2]
[394614746,1763771443445,-500.0,0.00016896,2]
[394614747,1763771443454,-500.0,0.00016896,2]
[394614748,1763771443465,-250.0,0.00016896,2]
[394614749,1763771443475,-500.0,0.00016896,2]
[394614750,1763771443485,-500.0,0.00016896,2]
[394614751,1763771443496,-250.0,0.00016896,2]
[394614752,1763771443506,-500.0,0.00016896,2]
[394614753,1763771443515,-250.0,0.00016896,2]
[394614754,1763771443525,-250.0,0.00016896,2]
[394614755,1763771443536,-500.0,0.00016896,2]
[394614756,1763771443546,-250.0,0.00016896,2]
[394614757,1763771443556,-500.0,0.00016896,2]
[394614758,1763771443566,-250.0,0.00016896,2]
[394614759,1763771443576,-500.0,0.00016896,2]
[394614760,1763771443585,-250.0,0.00016896,2]
[394614761,1763771443595,-250.0,0.00016896,2]
[394614762,1763771443606,-500.0,0.00016896,2]
[394614763,1763771443615,-250.0,0.00016896,2]
[394614764,1763771443624,-500.0,0.00016896,2]
[394614765,1763771443635,-253.97841715,0.00016896,2]
[394614766,1763771443645,-250.0,0.00016896,2]
[394614767,1763771443654,-500.0,0.00016896,2]
[394614768,1763771443663,-250.0,0.00016896,2]
[394614769,1763771443673,-500.0,0.00016896,2]
[394614770,1763771443683,-250.0,0.00016896,2]
[394614771,1763771443692,-500.0,0.00016896,2]
[394614772,1763771443702,-500.0,0.00016896,2]
[394614773,1763771443712,-250.0,0.00016896,2]
[394614774,1763771443721,-500.0,0.00016896,2]
[394614775,1763771443731,-250.0,0.00016896,2]
[394614776,1763771443741,-500.0,0.00016896,2]
[394614777,1763771443751,-250.0,0.00016896,2]
[394614778,1763771443761,-250.0,0.00016896,2]
[394614779,1763771443771,-500.0,0.00016896,2]
[394614780,1763771443781,-500.0,0.00016896,2]
[394614781,1763771443791,-500.0,0.00016896,2]
[394614782,1763771443800,-500.0,0.00016896,2]
[394614783,1763771443810,-500.0,0.00016896,2]
[394614784,1763771443820,-500.0,0.00016896,2]
[394614785,1763771443829,-250.0,0.00016896,2]
[394614786,1763771443839,-500.0,0.00016896,2]
[394614787,1763771443849,-250.0,0.00016896,2]
[394614788,1763771443858,-500.0,0.00016896,2]
[394614789,1763771443868,-250.0,0.00016896,2]
[394614790,1763771443879,-500.0,0.00016896,2]
[394614792,1763771443976,-250.0,0.00016896,2]
[394614793,1763771443986,-578.20924308,0.00016896,2]
[394614794,1763771443996,-500.0,0.00016896,2]
[394614795,1763771444006,-500.0,0.00016896,2]
[394614796,1763771444015,-500.0,0.00016896,2]
[394614797,1763771444026,-426.22193575,0.00016896,2]
[394614798,1763771444036,-160.0,0.000169,2]
[394614799,1763771444045,-160.0,0.000169,2]
[394614800,1763771444055,-160.0,0.000169,2]
[394614801,1763771444065,-3500.32713313,0.000169,2]
[394614802,1763771444636,-653.240225,0.00016463,2]
[394614803,1763771444647,-277.54474055,0.000169,2]
[394614804,1763771444655,-576.29,0.0001691,2]
[394614805,1763771444665,-500.0,0.00016921,2]
[394614806,1763771444674,-365.34942245,0.00016973,2]
[394614807,1763771444683,-153.692557,0.00016973,2]
[394614808,1763771444693,-151.0,0.00016973,2]
[394614809,1763771444702,-134.53784753,0.00016973,2]
[394614811,1763771446410,-653.240225,0.00016362,2]
[394614812,1763771446420,-126.21493585,0.00016362,2]
[394614814,1763771446881,-527.02528915,0.00016362,2]
[394614815,1763771446891,-151.57024,0.00016438,2]
[394614816,1763771446903,-151.0,0.00016438,2]
[394614817,1763771446913,-151.57024,0.00016438,2]
[394614818,1763771446923,-151.0,0.00016438,2]
[394614819,1763771446933,-151.0,0.00016438,2]
[394614820,1763771446943,-151.0,0.00016438,2]
[394614821,1763771446953,-151.57024,0.00016463,2]
[394614822,1763771446963,-151.57024,0.00016463,2]
[394614823,1763771446973,-151.0,0.00016463,2]
[394614824,1763771446983,-653.240225,0.00016463,2]
[394614825,1763771446993,-151.0,0.00016463,2]
[394614826,1763771447003,-653.240225,0.00016463,2]
[394614827,1763771447013,-151.0,0.00016463,2]
[394614828,1763771447023,-151.0,0.00016482,2]
[394614829,1763771447033,-151.0,0.00016482,2]
[394614830,1763771447043,-653.240225,0.00016873,2]
[394614831,1763771447052,-151.57024,0.00016873,2]
[394614832,1763771447062,-151.0,0.00016873,2]
[394614833,1763771447072,-151.57024,0.00016873,2]
[394614834,1763771447082,-653.240225,0.00016873,2]
[394614835,1763771447091,-151.0,0.00016873,2]
[394614836,1763771447101,-653.240225,0.00016873,2]
[394614837,1763771447110,-151.0,0.00016873,2]
[394614838,1763771447121,-653.240225,0.00016896,2]
[394614839,1763771447131,-151.57024,0.00016896,2]
[394614840,1763771447141,-151.0,0.00016896,2]
[394614841,1763771447154,-151.57024,0.00016896,2]
[394614842,1763771447164,-17.76614085,0.00016896,2]
[394614844,1763771447203,-630.48934459,0.00016896,2]
[394615035,1763771515684,1316.49,7.531e-05,2]
[394615036,1763771515891,1316.49,7.927e-05,2]
[394615037,1763771516108,1316.49,8.323e-05,2]
[394615038,1763771516314,882.76565467,8.72e-05,2]
[394615039,1763771516340,433.72434533,8.72e-05,2]
[394615040,1763771516535,1316.49,9.116e-05,2]
[394615041,1763771516742,1316.49,9.513e-05,2]
[394615042,1763771516979,1316.49,9.909e-05,2]
[394615043,1763771517362,1316.49,0.00010305,2]
[394615044,1763771517454,1316.49,0.00010702,2]
[394615045,1763771517637,1316.49,0.00011098,2]
[394615046,1763771517871,1316.49,0.00011494,2]
[394615047,1763771518101,350.85565467,0.00011891,2]
[394615048,1763771518124,965.63434533,0.00011891,2]
[394615049,1763771518299,1316.49,0.00012287,2]
[394615050,1763771519000,1316.49,0.00012683,2]
[394615051,1763771519073,1316.49,0.0001308,2]
[394615052,1763771519279,1316.49,0.00013476,2]
[394615053,1763771519397,1316.49,0.00013872,2]
[394615054,1763771519446,1316.49,0.00014269,2]
[394615055,1763771519681,1135.43565467,0.00014665,2]
[394615056,1763771519706,181.05434533,0.00014665,2]
[394615074,1763772631938,-271.91129923,0.00015061,2]
[394615075,1763772632052,-72.24870077,0.00015061,2]
[394615076,1763772632063,-1266.90065746,0.00015061,2]
[394615077,1763772632074,-404.53844161,0.00015061,2]
[394615078,1763772632086,-134.31090093,0.00015061,2]
[394615079,1763772632096,-1316.49,0.00015062,2]
[394615080,1763772632105,-1425.77,0.00015414,2]
[394615081,1763772632115,-1200.0,0.00015455,2]
[394615082,1763772632127,-1096.84,0.00015456,2]
[394615083,1763772632136,-1600.0,0.0001546,2]
[394615084,1763772632146,-185.08059703,0.000159,2]
[394615085,1763772632156,-229.0,0.00015998,2]
[394615086,1763772632165,-300.0,0.00015998,2]
[394615087,1763772632175,-438232.37471099,0.00015999,2]
[394615089,1763772632186,-61800.87626812,0.00015999,2]
[394615091,1763772632197,-70928.79710447,0.00015999,2]
[394615093,1763772632208,-51429.32421642,0.00015999,2]
[394615095,1763772632217,-234.9799,0.00016,2]
[394615097,1763772632227,-6511.95887613,0.00016,2]
[394615099,1763772632237,-3630.69949616,0.00016,2]
[394615101,1763772632246,-47503.4328,0.00016,2]
[394615103,1763772632256,-500.0,0.00016073,2]
[394615104,1763772632265,-501.11720576,0.00016073,2]
[394615105,1763772632275,-151.0,0.00016081,2]
[394615106,1763772632284,-500.0,0.0001609,2]
[394615108,1763772632294,-300.0,0.00016098,2]
[394615110,1763772632305,-851.792,0.00016099,2]
[394615111,1763772632315,-156.714,0.00016099,2]
[394615112,1763772632324,-500.0,0.00016099,2]
[394615113,1763772632334,-500.0,0.00016099,2]
[394615114,1763772632343,-500.0,0.00016099,2]
[394615115,1763772632352,-618.94371933,0.00016099,2]
[394615116,1763772632361,-150.99,0.00016099,2]
[394615117,1763772632371,-883.88,0.00016099,2]
[394615118,1763772632382,-1199.74,0.00016099,2]
[394615119,1763772632391,-768.05,0.00016099,2]
[394615120,1763772632400,-999.99,0.00016099,2]
[394615121,1763772632410,-9999.99,0.00016099,2]
[394615122,1763772632419,-500.78799019,0.00016099,2]
[394615123,1763772632428,-200.0,0.00016099,2]
[394615124,1763772632437,-200.0,0.00016099,2]
[394615125,1763772632447,-613.81186668,0.00016099,2]
[394615126,1763772632456,-379.37,0.00016099,2]
[394615127,1763772632465,-500.0,0.00016099,2]
[394615128,1763772632474,-200.0,0.00016099,2]
[394615129,1763772632484,-244.0,0.00016099,2]
[394615130,1763772632494,-500.0,0.00016099,2]
[394615131,1763772632503,-150.0,0.00016099,2]
[394615132,1763772632513,-200.0,0.00016099,2]
[394615133,1763772632523,-200.0,0.00016099,2]
[394615134,1763772632532,-819.69,0.00016099,2]
[394615135,1763772632542,-819.69,0.00016099,2]
[394615136,1763772632552,-819.69,0.00016099,2]
[394615137,1763772632561,-453.56,0.00016099,2]
[394615138,1763772632571,-224.73705705,0.000161,2]
[394615139,1763772632580,-641.190374,0.000161,2]
[394615140,1763772632590,-641.190374,0.000161,2]
[394615141,1763772632599,-641.190374,0.000161,2]
[394615142,1763772632609,-641.190374,0.000161,2]
[394615143,1763772632619,-157.5149362,0.000162,2]
[394615144,1763772632631,-6511.95887605,0.00016211,2]
[394615145,1763772632640,-3630.69949615,0.00016211,2]
[394615146,1763772632650,-500.0,0.00016236,2]
[394615147,1763772632662,-200.0,0.00016236,2]
[394615148,1763772632671,-701.23,0.000163,2]
[394615149,1763772632680,-701.23,0.000163,2]
[394615150,1763772632690,-500.0,0.00016362,2]
[394615151,1763772632699,-500.0,0.00016362,2]
[394615152,1763772632709,-500.0,0.00016362,2]
[394615153,1763772632718,-200.0,0.00016373,2]
[394615154,1763772632727,-453.56,0.00016373,2]
[394615155,1763772632739,-578.20924308,0.00016386,2]
[394615156,1763772632748,-574.12855637,0.00016386,2]
[394615157,1763772632759,-500.0,0.00016386,2]
[394615158,1763772632768,-721.12765535,0.00016386,2]
[394615159,1763772632777,-500.0,0.00016386,2]
[394615160,1763772632786,-500.0,0.00016386,2]
[394615161,1763772632796,-500.0,0.00016386,2]
[394615162,1763772632805,-500.0,0.00016386,2]
[394615163,1763772632815,-500.0,0.00016386,2]
[394615164,1763772632824,-500.0,0.00016386,2]
[394615165,1763772632833,-500.0,0.00016386,2]
[394615166,1763772632842,-500.0,0.00016386,2]
[394615167,1763772632851,-500.0,0.00016386,2]
[394615168,1763772632862,-500.0,0.00016386,2]
[394615169,1763772632871,-500.0,0.00016386,2]
[394615170,1763772632881,-500.0,0.00016386,2]
[394615171,1763772632890,-500.0,0.00016386,2]
[394615172,1763772632899,-500.0,0.00016386,2]
[394615173,1763772632908,-500.0,0.00016386,2]
[394615174,1763772632918,-500.0,0.00016386,2]
[394615175,1763772632927,-500.0,0.00016386,2]
[394615176,1763772632936,-500.0,0.00016386,2]
[394615177,1763772632946,-500.0,0.00016386,2]
[394615178,1763772632955,-500.0,0.00016386,2]
[394615179,1763772632964,-500.0,0.00016386,2]
[394615180,1763772632974,-500.0,0.00016386,2]
[394615181,1763772632983,-500.0,0.00016386,2]
[394615182,1763772632992,-500.0,0.00016386,2]
[394615183,1763772633001,-620.0,0.00016386,2]
[394615184,1763772633010,-500.0,0.00016386,2]
[394615185,1763772633019,-500.0,0.00016386,2]
[394615186,1763772633028,-500.0,0.00016386,2]
[394615187,1763772633037,-500.0,0.00016386,2]
[394615188,1763772633047,-500.0,0.00016386,2]
[394615189,1763772633056,-500.0,0.00016386,2]
[394615190,1763772633064,-500.0,0.00016386,2]
[394615191,1763772633074,-500.0,0.00016386,2]
[394615192,1763772633083,-500.0,0.00016386,2]
[394615193,1763772633092,-500.0,0.00016386,2]
[394615194,1763772633101,-500.0,0.00016386,2]
[394615195,1763772633110,-500.0,0.00016386,2]
[394615196,1763772633119,-42.58416666,0.00016386,2]
[394615197,1763772633133,-457.41583334,0.00016386,2]
[394615198,1763772633142,-76.1534658,0.00016386,2]
[394615199,1763772633168,-423.8465342,0.00016386,2]
[394615200,1763772633177,-500.0,0.00016386,2]
[394615201,1763772633186,-402.6046531,0.00016386,2]
[394615270,1763772640020,-97.3953469,0.00016386,2]
[394615271,1763772640030,-500.0,0.00016386,2]
[394615272,1763772640040,-369.60273373,0.00016386,2]
[394615273,1763772640363,-130.39726627,0.00016386,2]
[394615274,1763772640372,-128.1408337,0.00016386,2]
[394615275,1763772640385,-292.501995,0.00016386,2]
[394615279,1763772643786,-79.3571713,0.00016386,2]
[394615280,1763772643796,-500.0,0.00016386,2]
[394615281,1763772643806,-500.0,0.00016386,2]
[394615282,1763772643815,-277.35679052,0.00016386,2]
[394615283,1763772643824,-701.23,0.000164,2]
[394615284,1763772643833,-478.87,0.000164,2]
[394615285,1763772643842,-6511.95887605,0.00016422,2]
[394615286,1763772643851,-3630.69949615,0.00016422,2]
[394615287,1763772643860,-300.0,0.00016431,2]
[394615288,1763772643869,-500.0,0.00016438,2]
[394615289,1763772643878,-421.11,0.00016438,2]
[394615290,1763772643889,-151.0,0.00016438,2]
[394615291,1763772643898,-151.0,0.00016438,2]
[394615292,1763772643908,-151.0,0.00016438,2]
[394615293,1763772643917,-253.723257,0.00016438,2]
[394615294,1763772643927,-280.341197,0.00016438,2]
[394615295,1763772643936,-151.0,0.00016438,2]
[394615296,1763772643946,-701.23,0.000165,2]
[394615297,1763772643956,-701.23,0.000165,2]
[394615298,1763772643966,-151.0,0.000165,2]
[394615299,1763772643975,-151.0,0.00016509,2]
[394615300,1763772643985,-151.0,0.00016509,2]
[394615301,1763772643994,-151.0,0.00016509,2]
[394615302,1763772644003,-188.260828,0.00016509,2]
[394615303,1763772644012,-151.0,0.00016509,2]
[394615304,1763772644022,-160.849486,0.00016509,2]
[394615305,1763772644032,-151.0,0.00016509,2]
[394615306,1763772644041,-151.0,0.00016509,2]
[394615307,1763772644052,-151.0,0.00016509,2]
[394615308,1763772644062,-151.0,0.00016509,2]
[394615309,1763772644071,-260.074285,0.00016509,2]
[394615310,1763772644081,-260.074285,0.00016509,2]
[394615311,1763772644090,-260.074285,0.00016509,2]
[394615312,1763772644099,-260.074285,0.00016509,2]
[394615313,1763772644109,-151.0,0.00016509,2]
[394615314,1763772644118,-151.0,0.00016509,2]
[394615315,1763772644127,-151.0,0.00016509,2]
[394615316,1763772644136,-163.559294,0.00016509,2]
[394615317,1763772644147,-163.559294,0.00016509,2]
[394615318,1763772644157,-163.559294,0.00016509,2]
[394615319,1763772644166,-163.559294,0.00016509,2]
[394615320,1763772644176,-151.0,0.00016509,2]
[394615321,1763772644186,-151.0,0.00016509,2]
[394615322,1763772644196,-250.0,0.00016567,2]
[394615323,1763772644206,-250.0,0.00016567,2]
[394615324,1763772644215,-2500.0,0.00016567,2]
[394615325,1763772644224,-250.0,0.00016567,2]
[394615326,1763772644233,-154.193107,0.00016567,2]
[394615327,1763772644243,-266.555284,0.00016567,2]
[394615328,1763772644252,-641.190374,0.00016567,2]
[394615329,1763772644262,-151.0,0.00016567,2]
[394615330,1763772644271,-641.190374,0.00016567,2]
[394615331,1763772644281,-278.43551407,0.00016567,2]
[394615333,1763772646462,-211.780333,0.00016438,2]
[394615334,1763772646471,-362.75485993,0.00016567,2]
[394615335,1763772646481,-641.190374,0.00016567,2]
[394615336,1763772646490,-91.9447892,0.000166,2]
[394615337,1763772646903,-609.2852108,0.000166,2]
[394615338,1763772646912,-700.51,0.000166,2]
[394615339,1763772646922,-160.795237,0.000166,2]
[394615340,1763772646932,-151.0,0.000166,2]
[394615341,1763772646941,-151.0,0.00016633,2]
[394615342,1763772646951,-6511.95887605,0.00016633,2]
[394615343,1763772646960,-3630.69949615,0.00016633,2]
[394615344,1763772646969,-151.0,0.00016637,2]
[394615345,1763772646979,-180.998021,0.00016637,2]
[394615346,1763772646989,-1339.141845,0.00016637,2]
[394615347,1763772646999,-1105.55986651,0.00016637,2]
[394615351,1763773385349,200.0,0.00022,120]
[394615352,1763773413439,150.0,0.00015667,120]
[394615365,1763773832250,-166.66,0.00014925,2]
[394615366,1763773832261,-166.66,0.00015239,2]
[394615367,1763773832270,-339.48486097,0.00015545,2]
[394615368,1763773832318,-504.83378329,0.00015545,2]
[394615369,1763773832329,-155.68135574,0.00015545,2]
[394615370,1763773832338,-166.66,0.00015553,2]
[394615371,1763773832348,-200.0,0.00015589,2]
[394615372,1763773832357,-150.0,0.00015667,2]